bitfinex-derivatives/quotes_ETHF0:USTF0_20260303
["timestamp","ask_amount","ask_price","bid_price","bid_amount"]
[1772576439773,6.62,1978.7,1977.7,2.06201714]
[1772576439968,2.11078157,1978.6,1977.7,2.06201714]
[1772576440966,2.11570801,1978.6,1977.7,2.06201714]
[1772576442468,2.36840801,1978.6,1977.5,1.98335859]
[1772576442772,2.36840801,1978.6,1977.3,1.98335859]
[1772576445173,2.11078157,1978.2,1977.1,1.91714143]
[1772576445874,2.11078157,1978.0,1976.9,1.91714143]
[1772576446070,2.11078157,1977.9,1976.9,1.91714143]
[1772576448173,2.11078157,1977.9,1977.1,1.89637113]
[1772576449277,2.11078157,1977.9,1977.3,1.89637113]
[1772576452483,2.11078157,1977.9,1976.8,2.14929113]
[1772576455782,2.11078157,1977.9,1977.3,1.89637113]
[1772576459593,1.95037309,1978.4,1977.3,1.89637113]
[1772576459791,1.95037309,1978.2,1977.3,1.89637113]
[1772576460090,1.95037309,1978.2,1977.1,1.85963882]
[1772576461097,1.95037309,1978.0,1977.1,1.85963882]
[1772576461294,1.95037309,1978.0,1977.0,1.84595628]
[1772576462002,1.95037309,1977.6,1976.8,1.84589462]
[1772576462197,1.95037309,1977.6,1976.6,1.83922648]
[1772576462599,1.95037309,1977.6,1976.8,1.83922648]
[1772576467200,1.95037309,1977.6,1976.5,1.89637113]
[1772576467698,1.95037309,1977.6,1976.7,1.89637113]
[1772576469599,1.95037309,1977.6,1976.5,2.14933113]
[1772576469804,1.95037309,1977.6,1976.8,1.89637113]
[1772576470200,1.95037309,1977.6,1977.0,1.89637113]
[1772576476005,1.95037309,1977.8,1977.2,1.89637113]
[1772576476706,1.95037309,1978.4,1977.4,1.89637113]
[1772576476901,1.95037309,1978.2,1977.4,1.89637113]
[1772576482112,1.95037309,1978.2,1977.6,1.75773907]
[1772576485817,1.79579687,1978.5,1977.8,1.75773907]
[1772576486012,1.79579687,1978.5,1977.8,1.76270553]
[1772576487319,1.80072331,1978.6,1978.0,1.75773907]
[1772576489715,1.79579687,1979.2,1978.2,1.75773907]
[1772576490720,1.79934496,1979.2,1978.2,1.75773907]
[1772576491817,1.79934496,1979.2,1977.8,0.00496646]
[1772576491818,1.79934496,1979.2,1978.4,1.75773907]
[1772576505231,1.79579687,1979.0,1978.1,1.83901559]
[1772576505422,1.79579687,1978.8,1978.2,1.75773907]
[1772576520136,1.79579687,1978.8,1978.1,6.27570583]
[1772576520535,1.79579687,1978.8,1978.2,1.74042442]
[1772576521541,1.79579687,1978.8,1978.1,6.27570583]
[1772576521835,1.89391503,1978.4,1977.8,0.00496646]
[1772576522044,1.89391503,1978.2,1977.4,1.74042442]
[1772576523038,1.89391503,1978.2,1977.4,1.74501996]
[1772576526244,4.20006931,1978.7,1977.4,1.74501996]
[1772576526245,1.89391503,1978.7,1977.4,1.99784996]
[1772576526442,1.89391503,1978.5,1977.4,1.99784996]
[1772576528842,1.89391503,1978.5,1977.6,1.83243732]
[1772576534043,2.14662503,1978.5,1977.4,1.83703286]
[1772576535850,1.70387752,1978.1,1977.4,0.00459554]
[1772576536350,1.70387752,1977.9,1977.4,0.00459554]
[1772576536741,1.70387752,1977.9,1977.4,1.83703286]
[1772576537341,1.70387752,1978.3,1977.4,1.83703286]
[1772576537544,1.70387752,1978.7,1977.6,1.83243732]
[1772576537849,1.70387752,1978.7,1977.8,1.83243732]
[1772576539756,1.72316398,1979.1,1978.0,1.77175702]
[1772576540354,1.72316398,1979.1,1978.2,1.77175702]
[1772576541949,1.72671207,1979.2,1978.4,1.77175702]
[1772576546657,0.00354809,1979.2,1978.6,1.77175702]
[1772576547056,1.72316398,1979.7,1978.6,1.77175702]
[1772576548055,1.72727336,1979.7,1978.6,1.77175702]
[1772576549860,1.72316398,1979.5,1978.6,1.77175702]
[1772576552162,1.72316398,1979.5,1978.8,1.77175702]
[1772576552364,1.72316398,1979.5,1978.8,1.77653559]
[1772576555971,3.2447,1979.6,1979.0,1.77175702]
[1772576556976,0.77736485,1979.6,1979.0,1.77175702]
[1772576557374,1.72316398,1979.5,1979.0,1.77175702]
[1772576557574,0.77736485,1979.6,1979.0,1.77175702]
[1772576557575,2.50052883,1979.6,1979.0,1.77175702]
[1772576558275,0.77736485,1979.6,1979.0,1.77175702]
[1772576560976,0.00410938,1979.7,1979.0,1.77175702]
[1772576561182,1.72316398,1980.1,1979.3,0.2526]
[1772576561382,1.72316398,1980.1,1979.4,0.48501435]
[1772576561582,1.72316398,1980.1,1979.5,0.25258]
[1772576561783,1.72316398,1980.1,1979.6,0.48501435]
[1772576562178,1.72316398,1980.8,1979.7,0.25255]
[1772576562385,0.00610664,1980.1,1979.8,0.53410052]
[1772576562683,1.72316398,1980.2,1979.8,0.53410052]
[1772576563081,1.72316398,1980.8,1979.8,0.53410052]
[1772576563577,1.72316398,1980.8,1980.0,0.59474597]
[1772576563780,0.00411047,1980.8,1980.2,0.59474597]
[1772576563980,1.72316398,1981.6,1980.4,0.59892816]
[1772576564182,1.72316398,1981.6,1981.0,0.59370652]
[1772576564582,1.72316398,1982.2,1981.0,0.59370652]
[1772576564782,1.72316398,1982.6,1981.7,1.77175702]
[1772576564980,1.72869691,1982.6,1981.7,1.77767162]
[1772576565178,1.72316398,1982.4,1981.7,1.77767162]
[1772576565983,1.72316398,1982.4,1981.7,0.45374988]
[1772576566386,1.72316398,1982.4,1981.1,0.74115113]
[1772576566886,1.72316398,1982.2,1980.9,0.74115113]
[1772576567287,1.72316398,1982.0,1980.2,0.72562911]
[1772576567490,1.72316398,1981.9,1980.4,0.72562911]
[1772576567689,1.72316398,1981.7,1980.4,0.72562911]
[1772576568584,1.72316398,1981.7,1980.6,0.72449434]
[1772576568984,3.4541,1981.6,1980.8,0.72781614]
[1772576569181,3.4541,1981.6,1981.0,0.72391475]
[1772576570688,2.0130421,1982.1,1981.1,0.25237]
[1772576570992,2.0130421,1982.1,1980.6,7.58844]
[1772576571194,2.0130421,1982.1,1980.7,0.22744037]
[1772576573191,2.0009377,1981.9,1980.7,0.22744037]
[1772576573591,2.0009377,1981.9,1980.6,0.25244]
[1772576573786,2.0009377,1981.7,1980.2,0.25381166]
[1772576574593,2.00098847,1981.5,1980.2,0.25381166]
[1772576577998,1.95747503,1981.3,1980.2,0.25381166]
[1772576578798,1.95747503,1981.3,1980.2,0.00536715]
[1772576581104,1.95747503,1981.3,1980.2,0.36447822]
[1772576588311,1.92121169,1981.5,1980.6,0.34437026]
[1772576588609,1.92121169,1981.5,1980.7,0.59679026]
[1772576589011,1.92121169,1981.5,1980.8,0.3173446]
[1772576589210,1.92121169,1981.5,1980.7,0.25242]
[1772576589412,1.92121169,1981.5,1980.7,0.56547526]
[1772576590611,1.92121169,1981.5,1980.8,0.30852217]
[1772576595214,1.92131157,1981.8,1981.2,0.31408362]
[1772576595512,0.00553293,1982.6,1982.5,1.99577341]
[1772576595713,1.81692159,1982.8,1982.5,0.00427522]
[1772576596119,1.81692159,1983.4,1982.5,2.00004863]
[1772576596414,1.81692159,1983.4,1982.7,1.99577341]
[1772576596608,1.82275128,1983.4,1982.7,1.99577341]
[1772576597212,0.00582969,1983.4,1982.7,1.99577341]
[1772576597915,0.00582969,1983.4,1982.9,2.14337377]
[1772576598218,2.06426429,1983.9,1982.8,2.14337377]
[1772576599119,2.06963378,1983.9,1982.8,2.14337377]
[1772576599921,2.06963378,1983.9,1982.8,2.39552377]
[1772576600319,2.06963378,1983.9,1982.8,0.25215]
[1772576600522,2.12800166,1983.7,1982.5,7.27327522]
[1772576600724,2.12800166,1983.7,1982.6,2.07541681]
[1772576600919,2.12800166,1983.7,1982.6,2.32758681]
[1772576601923,2.12800166,1983.4,1982.5,0.00427522]
[1772576602925,2.7533771,1983.2,1982.1,0.25224]
[1772576603127,2.12800166,1983.1,1982.1,0.25224]
[1772576603426,2.12800166,1983.1,1982.1,2.32765681]
[1772576603923,2.12800166,1983.1,1982.1,2.33380634]
[1772576605517,2.12800166,1983.1,1982.5,0.25219]
[1772576606620,6.61636949,1983.9,1982.5,2.32760681]
[1772576606826,2.12800166,1983.8,1982.5,2.32760681]
[1772576607523,2.12800166,1983.4,1982.1,2.08156634]
[1772576609224,2.12800166,1983.2,1982.1,2.08156634]
[1772576610831,2.12800166,1983.2,1982.3,2.07541681]
[1772576613726,5.13349876,1983.2,1982.1,0.00614953]
[1772576614028,2.12800166,1982.7,1981.7,2.07541681]
[1772576614829,2.12800166,1982.7,1981.5,2.07541681]
[1772576615127,2.12800166,1982.7,1981.5,2.08090261]
[1772576615332,2.12800166,1982.7,1981.6,2.32772681]
[1772576619330,2.12800166,1982.7,1982.0,2.07541681]
[1772576619836,2.12800166,1983.2,1982.0,2.07541681]
[1772576620936,2.12800166,1983.2,1982.2,2.07541681]
[1772576621128,2.12800166,1983.2,1982.4,2.07541681]
[1772576621535,2.12800166,1983.4,1982.6,2.07541681]
[1772576622331,2.12800166,1983.4,1982.8,2.07541681]
[1772576625439,2.12800166,1983.4,1982.7,0.25217]
[1772576625846,2.12800166,1983.4,1982.6,2.07541681]
[1772576626238,2.12800166,1983.4,1982.4,6.21983756]
[1772576627442,2.12800166,1983.6,1982.8,2.07541681]
[1772576627649,2.12800166,1983.6,1982.5,9.30741681]
[1772576628042,2.38005166,1983.6,1982.5,2.07541681]
[1772576629144,2.04903393,1983.4,1982.5,2.07541681]
[1772576630351,2.30112393,1983.3,1982.3,4.14442075]
[1772576630544,2.30112393,1983.3,1982.2,4.14442075]
[1772576632952,2.04903393,1983.1,1982.1,6.10870998]
[1772576634251,2.04903393,1983.1,1982.4,1.96428923]
[1772576635063,2.04903393,1983.6,1982.8,1.96428923]
[1772576645165,2.04903393,1983.6,1982.9,0.25214]
[1772576645370,2.04903393,1983.6,1983.0,1.96428923]
[1772576646468,2.04903393,1983.6,1982.9,2.22055819]
[1772576647472,2.04903393,1983.8,1983.0,1.96428923]
[1772576647665,2.04903393,1983.8,1983.2,1.96428923]
[1772576648267,0.00536949,1983.9,1983.2,6.10870998]
[1772576648465,2.05440342,1983.9,1983.3,1.96428923]
[1772576649770,0.00536949,1983.9,1983.3,1.96428923]
[1772576649972,2.05440342,1983.9,1983.3,1.96428923]
[1772576653370,2.05440342,1983.9,1983.5,1.96428923]
[1772576653673,0.00536949,1983.9,1983.5,1.96428923]
[1772576653973,2.04903393,1984.0,1983.5,1.96428923]
[1772576654769,2.05484133,1984.0,1983.5,1.96428923]
[1772576656175,2.05484133,1984.0,1983.2,6.10870998]
[1772576656370,2.05484133,1984.0,1983.2,1.96428923]
[1772576657076,2.04903393,1983.8,1982.9,0.00412896]
[1772576657874,2.02405904,1983.6,1982.9,0.00412896]
[1772576659274,2.02405904,1983.6,1982.9,2.04273578]
[1772576659471,2.02405904,1983.6,1982.9,0.00412896]
[1772576661376,2.02405904,1983.6,1982.5,2.03860682]
[1772576661771,2.00538209,1983.4,1982.5,2.03860682]
[1772576661977,2.00538209,1983.4,1982.4,7.315]
[1772576662272,2.00538209,1983.4,1982.4,9.35360682]
[1772576662578,2.00538209,1983.4,1982.4,9.35940765]
[1772576663473,2.00538209,1983.4,1982.4,7.32080083]
[1772576663674,2.00538209,1983.4,1982.5,2.03860682]
[1772576665980,2.00538209,1983.4,1982.4,0.00580083]
[1772576666178,2.00538209,1983.4,1982.4,2.04440765]
[1772576667177,2.00538209,1983.2,1982.4,2.04440765]
[1772576667875,2.00538209,1983.2,1982.5,0.25219]
[1772576668074,4.22317788,1983.7,1982.6,2.03860682]
[1772576668075,2.00538209,1983.7,1982.6,2.03860682]
[1772576668481,2.00538209,1983.7,1982.8,2.03860682]
[1772576671481,2.00538209,1983.7,1983.0,2.03860682]
[1772576674086,2.00538209,1983.7,1982.6,6.18302757]
[1772576674388,2.00538209,1983.7,1982.7,2.03860682]
[1772576675083,2.00538209,1983.5,1982.7,2.03860682]
[1772576675384,2.00538209,1983.5,1982.6,2.03860682]
[1772576677385,2.00538209,1983.3,1982.4,2.04440765]
[1772576678383,2.00538209,1983.3,1982.6,2.03860682]
[1772576686691,2.00538209,1983.3,1982.7,2.03860682]
[1772576687190,2.00538209,1983.3,1982.8,2.03860682]
[1772576691001,2.00538209,1983.3,1982.4,6.28150666]
[1772576691194,1.88453105,1983.0,1982.0,1.90006478]
[1772576691395,1.88453105,1982.8,1981.8,1.90006478]
[1772576691689,1.88453105,1982.6,1981.8,1.90006478]
[1772576691895,1.88453105,1982.4,1981.7,1.90006478]
[1772576692191,4.22317788,1982.2,1981.1,1.90006478]
[1772576692392,1.88453105,1982.0,1981.1,1.90006478]
[1772576692697,1.88453105,1981.8,1981.1,1.90006478]
[1772576692993,1.88453105,1981.8,1980.7,1.90006478]
[1772576693189,1.88453105,1981.6,1980.7,0.00585753]
[1772576693896,1.88453105,1981.4,1980.7,0.00585753]
[1772576694298,1.88453105,1981.2,1979.8,1.90006478]
[1772576695295,1.88453105,1981.2,1979.8,1.90519522]
[1772576696194,1.88453105,1981.0,1979.8,1.90519522]
[1772576696400,1.89065285,1981.0,1979.8,1.90519522]
[1772576697400,1.88453105,1980.9,1979.8,0.00513044]
[1772576697897,1.88453105,1980.9,1979.8,1.90519522]
[1772576699500,1.88453105,1980.9,1979.8,0.00513044]
[1772576700201,1.88453105,1980.5,1978.6,1.90006478]
[1772576700395,1.88453105,1980.3,1978.6,1.90006478]
[1772576700797,1.88453105,1980.3,1979.2,1.90006478]
[1772576701195,1.88453105,1980.3,1979.2,1.90562109]
[1772576701496,6.613,1980.4,1979.3,1.90006478]
[1772576701696,1.88453105,1980.3,1979.3,1.90006478]
[1772576702294,1.88453105,1980.7,1979.4,2.15265478]
[1772576702799,0.0061218,1981.0,1979.9,1.90006478]
[1772576703002,0.0061218,1981.0,1980.1,1.90006478]
[1772576704002,1.88453105,1981.4,1980.1,1.90006478]
[1772576705004,1.88954259,1981.4,1980.1,1.90006478]
[1772576705600,0.00501154,1981.4,1980.3,1.90006478]
[1772576706406,1.88954259,1981.4,1980.3,1.90006478]
[1772576706708,1.88453105,1981.3,1980.3,1.90006478]
[1772576706909,1.88453105,1981.1,1979.7,1.90006478]
[1772576707904,1.88453105,1981.1,1979.8,0.25254]
[1772576708107,1.88453105,1981.3,1980.1,1.90006478]
[1772576709512,0.00501154,1981.4,1980.3,4.65387783]
[1772576709715,1.88453105,1981.7,1980.5,1.90006478]
[1772576710516,1.88453105,1981.7,1980.6,0.25244]
[1772576710712,1.8901528,1981.7,1980.7,1.90006478]
[1772576721716,1.8901528,1981.7,1980.8,0.25241]
[1772576721921,1.8901528,1981.7,1980.9,1.94617794]
[1772576728631,0.25233,1981.4,1980.6,1.95270117]
[1772576728832,2.03441885,1981.3,1980.6,1.95270117]
[1772576729432,2.03441885,1981.1,1980.2,1.94617794]
[1772576729633,10.43039788,1981.6,1980.6,1.94617794]
[1772576729634,2.03441885,1981.3,1980.6,1.94617794]
[1772576730531,2.03441885,1981.3,1980.6,1.95248267]
[1772576731135,2.03441885,1981.3,1980.6,0.00630473]
[1772576732135,4.22317788,1981.5,1980.6,0.00630473]
[1772576732136,2.03441885,1981.1,1980.6,0.00630473]
[1772576732534,2.03441885,1981.1,1980.3,1.94617794]
[1772576733425,0.48375261,1981.0,1980.3,1.94617794]
[1772576733628,2.03441885,1980.9,1980.3,0.00590211]
[1772576737534,2.03441885,1981.2,1980.3,1.95208005]
[1772576742442,2.03441885,1981.4,1980.5,1.94617794]
[1772576745845,2.03441885,1981.4,1980.7,1.94617794]
[1772576750939,2.01185448,1981.6,1980.7,1.94617794]
[1772576751143,2.01185448,1981.6,1980.9,1.88271649]
[1772576751344,2.01747623,1981.7,1980.9,1.88271649]
[1772576751739,0.00562175,1981.7,1980.9,1.88271649]
[1772576752145,2.01747623,1981.7,1980.9,1.88271649]
[1772576763258,0.00562175,1981.7,1981.3,1.88271649]
[1772576763457,2.01185448,1982.0,1981.3,1.88271649]
[1772576764358,2.01643474,1982.0,1981.3,1.88271649]
[1772576767261,2.01643474,1982.0,1981.0,1.88271649]
[1772576772057,2.01185448,1981.8,1980.9,1.88271649]
[1772576772857,0.2523,1981.7,1980.8,1.88271649]
[1772576773060,2.01185448,1981.6,1980.8,1.88271649]
[1772576774162,2.01185448,1981.6,1980.5,6.27570583]
[1772576774163,2.01185448,1981.8,1981.0,1.88271649]
[1772576774365,2.01185448,1981.7,1981.0,1.88271649]
[1772576775862,2.01185448,1981.9,1981.2,1.88271649]
[1772576776458,2.01643474,1982.0,1981.2,1.88271649]
[1772576776663,2.01185448,1981.9,1981.2,1.88271649]
[1772576781072,2.01185448,1981.9,1981.0,1.82399724]
[1772576781369,1.99004663,1981.7,1981.0,1.82399724]
[1772576813195,0.48552477,1981.6,1981.0,1.82399724]
[1772576813395,2.25707077,1981.6,1981.0,1.82399724]
[1772576813595,1.771546,1981.6,1981.0,1.82399724]
[1772576815999,1.771546,1981.8,1981.0,2.07637724]
[1772576817899,1.77612626,1982.0,1981.3,1.8017567]
[1772576818099,0.48168861,1981.9,1981.3,1.8017567]
[1772576818501,1.771546,1981.9,1981.3,1.8017567]
[1772576824600,1.771546,1981.9,1981.5,1.8017567]
[1772576826007,1.771546,1981.9,1981.4,1.8017567]
[1772576836012,1.77612626,1982.0,1981.4,1.8017567]
[1772576840617,0.00458026,1982.0,1981.6,1.83396946]
[1772576840823,1.9002828,1982.2,1981.7,1.73886531]
[1772576841820,1.90524402,1982.2,1981.7,1.74539186]
[1772576843117,0.00496122,1982.2,1981.7,1.74539186]
[1772576843324,1.90524402,1982.2,1981.7,1.74539186]
[1772576844718,1.9002828,1981.7,1981.3,8.01457114]
[1772576845024,1.9002828,1981.7,1981.3,1.73886531]
[1772576845318,1.9002828,1981.7,1981.2,1.73886531]
[1772576845715,1.9002828,1981.7,1981.2,1.74355526]
[1772576847623,1.9002828,1981.6,1981.2,1.74355526]
[1772576847815,10.84440058,1982.1,1981.2,0.00468995]
[1772576847816,3.77323524,1982.1,1981.2,0.00468995]
[1772576848020,1.90524402,1982.2,1981.7,1.73886531]
[1772576848220,1.9002828,1982.1,1981.6,1.73886531]
[1772576848426,1.9002828,1981.6,1981.2,0.00468995]
[1772576849017,1.9002828,1981.6,1981.1,1.73886531]
[1772576849926,1.9002828,1981.6,1981.1,1.74243162]
[1772576854922,1.9002828,1981.4,1980.8,1.73886531]
[1772576855822,1.9002828,1981.4,1980.8,1.74518957]
[1772576857731,1.9002828,1981.2,1980.8,0.00632426]
[1772576858117,1.9002828,1981.2,1980.6,1.73886531]
[1772576859023,1.9002828,1981.2,1980.6,0.00433353]
[1772576860127,1.9002828,1981.0,1980.6,0.00433353]
[1772576860325,1.9002828,1981.0,1980.5,1.73886531]
[1772576860627,1.9002828,1981.0,1980.3,9.36986531]
[1772576860928,1.9002828,1981.0,1980.3,1.73886531]
[1772576861322,1.9002828,1981.0,1980.3,1.7448666]
[1772576863519,1.9002828,1980.8,1980.3,1.7448666]
[1772576863720,1.90508094,1980.8,1980.3,1.7448666]
[1772576873027,1.90508094,1980.8,1979.9,1.83073718]
[1772576873231,1.75717358,1980.5,1979.9,1.83073718]
[1772576874133,1.75717358,1980.5,1979.9,1.83617758]
[1772576879133,1.76197172,1980.8,1980.1,1.83073718]
[1772576879341,1.76197172,1980.8,1980.3,1.83073718]
[1772576886347,1.76197172,1980.8,1980.3,1.83073718]
[1772576886546,1.76197172,1980.8,1980.2,1.83073718]
[1772576888145,1.76197172,1980.8,1980.3,1.83073718]
[1772576893658,1.75717358,1981.4,1980.5,1.83073718]
[1772576893857,1.75717358,1981.2,1980.7,1.83073718]
[1772576894555,1.76322896,1981.2,1980.7,1.83073718]
[1772576899359,0.00605538,1981.2,1980.7,1.83073718]
[1772576899561,1.84153762,1981.2,1980.7,1.83073718]
[1772576902657,0.00605538,1981.2,1980.7,1.83073718]
[1772576902863,0.00605538,1981.2,1980.7,9.62573718]
[1772576903056,1.83548224,1981.5,1980.8,1.80340408]
[1772576903760,0.25228,1981.9,1980.8,1.80340408]
[1772576903761,1.83548224,1981.8,1980.8,1.80340408]
[1772576903962,1.83548224,1981.8,1981.0,1.80340408]
[1772576904164,1.84194809,1981.8,1981.0,1.80340408]
[1772576923773,1.84194809,1981.8,1981.1,1.80340408]
[1772576927566,0.00646585,1981.8,1981.3,1.80340408]
[1772576927771,0.00646585,1981.8,1981.3,1.80701818]
[1772576928172,1.83548224,1982.0,1981.3,1.80701818]
[1772576929174,1.84153272,1982.0,1981.3,1.80701818]
[1772576929777,1.84153272,1982.0,1981.3,0.0036141]
[1772576933170,1.83479048,1981.8,1981.3,0.0036141]
[1772576940181,1.83479048,1981.7,1981.1,4.16939918]
[1772576940381,1.83479048,1981.5,1980.9,6.10058444]
[1772576940985,1.83479048,1981.4,1980.8,4.16934825]
[1772576941185,1.83479048,1981.4,1980.8,1.9362972]
[1772576942485,1.83479048,1981.4,1980.8,0.00511194]
[1772576944582,1.83479048,1981.4,1980.8,1.9362972]
[1772576955495,1.83479048,1981.7,1980.9,1.93118526]
[1772576957291,3.66985369,1981.6,1980.9,1.93118526]
[1772576957593,1.83479048,1981.6,1980.9,1.93118526]
[1772576962196,1.83144915,1981.5,1980.9,1.93118526]
[1772576964497,1.83144915,1981.1,1980.8,1.82286945]
[1772576964795,1.83144915,1981.2,1980.8,1.82286945]
[1772576966493,6.04930009,1981.9,1981.2,1.80485452]
[1772576966695,1.83144915,1981.9,1981.5,1.80485452]
[1772576967099,1.83144915,1981.9,1981.1,1.80485452]
[1772576967299,1.83144915,1981.6,1981.1,1.80485452]
[1772576967493,1.83144915,1981.4,1981.1,1.80485452]
[1772576968097,1.83144915,1981.4,1981.0,1.81775751]
[1772576968299,1.83144915,1981.4,1980.8,1.82286945]
[1772576971003,1.83506321,1981.7,1980.8,1.82286945]
[1772576971004,1.83144915,1981.2,1980.8,1.82286945]
[1772576973908,1.83144915,1981.2,1980.8,1e-08]
[1772576974103,1.83144915,1981.2,1980.7,1.81775751]
[1772576975305,1.83144915,1981.2,1980.7,1.82383969]
[1772576977106,1.83144915,1981.0,1980.5,1.81775751]
[1772576978208,1.83144915,1981.0,1980.5,1.82381713]
[1772576985720,1.83144915,1980.9,1980.5,0.00605962]
[1772576990224,1.83144915,1980.9,1980.5,1.89690006]
[1772576991123,1.83144915,1980.9,1980.5,0.00605962]
[1772576992419,1.83144915,1980.9,1980.2,1.89407362]
[1772576993525,1.83144915,1980.9,1980.2,1.90028894]
[1772577004023,1.99761598,1981.0,1980.2,1.90028894]
[1772577004221,1.99761598,1981.1,1980.5,1.89315679]
[1772577004422,1.99761598,1980.9,1980.5,1.89315679]
[1772577010827,1.99761598,1980.9,1980.1,1.89745054]
[1772577010828,1.99761598,1980.8,1980.1,1.89745054]
[1772577011924,1.99761598,1980.8,1980.1,1.90114974]
[1772577012729,10.44924637,1980.8,1980.1,0.0036992]
[1772577013035,2.47877904,1980.7,1980.1,0.0036992]
[1772577013231,1.99761598,1980.7,1980.1,0.0036992]
[1772577013933,1.99761598,1980.4,1979.7,1.89745054]
[1772577014129,1.99761598,1980.2,1979.5,1.89745054]
[1772577014832,2.00306346,1980.2,1979.5,1.90146061]
[1772577019632,0.00544748,1980.2,1979.5,1.90146061]
[1772577019834,2.02227901,1980.6,1979.7,1.95261377]
[1772577020033,2.02227901,1980.4,1979.5,1.95662384]
[1772577020242,2.02227901,1980.2,1979.5,1.95662384]
[1772577020535,2.02227901,1980.1,1979.4,1.30314665]
[1772577020740,2.02227901,1980.1,1979.2,1.30314665]
[1772577021336,2.08813039,1980.2,1979.1,1.3235821]
[1772577021337,2.02227901,1979.9,1979.1,1.3235821]
[1772577021639,2.02803427,1979.9,1979.1,1.33005867]
[1772577027437,2.02227901,1979.8,1979.1,0.00647657]
[1772577037941,2.02227901,1979.6,1978.6,1.33711308]
[1772577038139,2.02227901,1979.5,1978.6,1.33711308]
[1772577038948,2.02227901,1979.5,1978.6,1.34261081]
[1772577039447,2.02227901,1979.5,1978.7,1.3413168]
[1772577043251,2.02227901,1979.5,1978.8,1.35827598]
[1772577049049,2.02227901,1979.5,1978.7,4.16551548]
[1772577049254,2.02227901,1979.5,1978.7,1.36515349]
[1772577050150,0.4817301,1979.4,1978.7,1.36515349]
[1772577050452,1.98587189,1979.3,1978.7,1.36515349]
[1772577052454,1.98587189,1979.3,1978.6,1.37489575]
[1772577056156,1.98587189,1979.5,1978.6,1.37489575]
[1772577056361,1.98587189,1979.4,1978.6,1.37489575]
[1772577062260,2.23847189,1979.4,1978.6,0.00549773]
[1772577062462,2.23850189,1979.1,1978.3,6.27570583]
[1772577062664,1.98587189,1978.9,1978.1,1.38434849]
[1772577062964,1.98587189,1978.8,1978.1,1.38434849]
[1772577063366,1.98587189,1978.8,1978.1,1.39056858]
[1772577066866,3.82150228,1978.8,1978.1,0.00622009]
[1772577067068,3.82150228,1978.8,1977.9,1.37978535]
[1772577067069,1.98587189,1978.7,1977.9,1.37978535]
[1772577068070,1.98587189,1978.7,1977.9,1.38596447]
[1772577068568,1.98587189,1978.7,1977.9,0.00617912]
[1772577069168,1.98587189,1978.4,1977.6,1.39410424]
[1772577069369,1.98587189,1978.2,1977.6,1.39410424]
[1772577069859,1.98587189,1978.2,1977.2,1.39493407]
[1772577070061,1.98587189,1978.1,1977.2,0.00638154]
[1772577070266,1.98992486,1978.2,1977.2,1.40139738]
[1772577070467,1.98992486,1978.2,1977.4,1.39501584]
[1772577072567,1.98992486,1978.2,1977.5,1.40603968]
[1772577075675,0.00405297,1978.2,1977.9,1.40082112]
[1772577075968,1.98587189,1978.7,1978.1,1.40082112]
[1772577076868,1.99222002,1978.7,1978.1,1.40082112]
[1772577077374,0.00634813,1978.7,1978.3,1.40336337]
[1772577077774,1.98587189,1979.5,1978.7,1.40411049]
[1772577077977,1.98587189,1979.3,1978.7,1.40411049]
[1772577078375,1.98587189,1979.3,1978.9,1.40443554]
[1772577078773,0.00596012,1979.3,1978.9,1.40951043]
[1772577079073,1.68105962,1979.4,1978.9,1.40951043]
[1772577079979,1.68673178,1979.4,1978.9,1.40951043]
[1772577081382,1.97143103,1979.8,1978.9,1.40951043]
[1772577082282,1.97600337,1979.8,1978.9,1.40951043]
[1772577083178,0.00457234,1979.8,1978.9,1.40951043]
[1772577083681,0.00457234,1979.8,1979.1,1.61401524]
[1772577091786,1.97600337,1979.8,1979.1,1.61401524]
[1772577092187,1.97600337,1979.8,1978.9,1.62553998]
[1772577096491,0.00457234,1979.8,1979.1,1.56057613]
[1772577099491,1.97143103,1980.2,1979.3,1.56700459]
[1772577099695,1.97143103,1980.4,1979.3,1.56700459]
[1772577099895,1.97143103,1980.4,1979.5,1.56700459]
[1772577100593,1.97558209,1980.4,1979.5,1.56700459]
[1772577104100,0.00415106,1980.4,1979.7,1.58564651]
[1772577104893,1.97558209,1980.4,1979.7,1.58564651]
[1772577105400,1.97558209,1980.4,1979.5,1.58782941]
[1772577110097,1.97558209,1980.4,1979.2,1.58878578]
[1772577111097,1.93619947,1980.2,1979.2,1.58878578]
[1772577120603,1.93619947,1980.0,1979.1,1.47076062]
[1772577131101,1.93619947,1980.3,1979.5,1.4330916]
[1772577131306,1.93619947,1980.3,1979.4,0.25259]
[1772577131507,1.93619947,1980.3,1979.4,1.6856816]
[1772577131809,1.93619947,1980.3,1979.4,1.4330916]
[1772577132608,1.93619947,1980.1,1979.4,1.4330916]
[1772577134310,1.93619947,1980.1,1979.4,0.9330916]
[1772577141322,2.04137295,1979.9,1979.4,0.9330916]
[1772577142819,6.26774491,1980.2,1979.4,0.9330916]
[1772577143025,2.04552401,1980.4,1979.6,0.92520551]
[1772577143221,2.04552401,1980.4,1979.7,0.43868388]
[1772577143523,0.00415106,1980.4,1979.8,0.43868388]
[1772577144220,2.04552401,1980.4,1979.8,0.43868388]
[1772577145022,0.00415106,1980.4,1979.8,0.43868388]
[1772577146514,2.04137295,1980.6,1979.8,0.43868388]
[1772577146716,2.04137295,1981.0,1980.4,0.57147288]
[1772577147722,2.04613114,1981.0,1980.4,0.57798722]
[1772577148125,0.00475819,1981.0,1980.4,0.57798722]
[1772577148325,2.04613114,1981.0,1980.4,0.57798722]
[1772577149525,4.47868196,1981.6,1980.4,0.57798722]
[1772577149526,2.04137295,1981.2,1980.4,0.57798722]
[1772577150127,2.04137295,1981.5,1980.4,0.57798722]
[1772577150528,2.04514979,1981.5,1980.4,0.57798722]
[1772577153933,2.04514979,1981.5,1980.5,0.25245]
[1772577154132,2.04514979,1981.5,1980.6,0.60500891]
[1772577159631,2.04514979,1981.5,1980.7,0.25242]
[1772577159933,2.04514979,1981.5,1980.8,0.68323563]
[1772577161930,2.04514979,1981.5,1980.5,0.7083165]
[1772577164229,0.00377684,1981.5,1980.5,0.7083165]
[1772577164435,2.04137295,1982.0,1981.4,0.70875775]
[1772577164734,2.04137295,1982.0,1981.0,0.70888955]
[1772577165429,2.04537604,1982.0,1981.0,0.70888955]
[1772577165931,2.04537604,1982.0,1981.2,0.66222343]
[1772577168729,0.00400309,1982.0,1981.4,0.65351694]
[1772577170136,2.0352106,1982.0,1981.4,0.65351694]
[1772577178841,2.0352106,1982.0,1981.3,0.25235]
[1772577179040,2.0352106,1982.0,1981.3,0.82292828]
[1772577180835,2.0352106,1982.0,1980.9,0.8622612]
[1772577181040,2.0352106,1982.0,1981.0,0.6098712]
[1772577190454,2.03120751,1981.8,1980.9,0.25239]
[1772577190854,2.03120751,1981.8,1980.9,0.86399751]
[1772577191052,2.03120751,1981.8,1980.8,0.61160751]
[1772577191356,2.03120751,1981.6,1980.8,0.61160751]
[1772577192052,2.03120751,1981.6,1980.6,0.60146535]
[1772577194459,2.03120751,1981.4,1980.6,0.60146535]
[1772577200659,2.03120751,1981.4,1980.4,7.11558455]
[1772577200867,2.03267814,1981.0,1980.4,0.63096113]